bitfinex/quotes_SOLUSD_20250722
["timestamp","ask_amount","ask_price","bid_price","bid_amount"]
[1753204338706,38.9,202.07,201.94,0.72]
[1753204338908,14.81885835,201.99,201.93,14.81885835]
[1753204339109,14.81885835,202.01,201.95,14.81885835]
[1753204339311,14.81885835,201.99,201.92,14.81885835]
[1753204339783,14.81885835,201.98,201.85,4.95417389]
[1753204339983,38.88,201.99,201.89,14.81885835]
[1753204339984,14.81885835,201.95,201.89,14.81885835]
[1753204340183,26.0,201.99,201.92,14.81885835]
[1753204340394,0.67,202.03,201.98,14.81885835]
[1753204340715,5.61752806,202.13,202.03,4.94975993]
[1753204340887,5.61752806,202.13,202.1,14.81885835]
[1753204341089,4.94752806,202.13,202.03,0.72]
[1753204341283,0.67,202.12,202.08,14.81885835]
[1753204341494,0.67,202.12,202.1,14.81885835]
[1753204341725,0.67,202.12,202.02,14.81885835]
[1753204341726,38.92,202.15,202.02,14.81885835]
[1753204341911,43.86698532,202.15,202.1,14.81885835]
[1753204342089,4.94698532,202.15,202.03,0.72]
[1753204342292,20.43584367,202.15,202.09,14.81885835]
[1753204342620,20.43584367,202.15,202.0,4.95026263]
[1753204342621,14.81885835,202.1,202.0,0.72]
[1753204342809,30.9478007,202.11,202.04,14.81885835]
[1753204343113,30.9478007,202.11,202.06,14.81885835]
[1753204343114,5.6178007,202.11,202.06,14.81885835]
[1753204343299,4.9478007,202.11,202.07,14.81885835]
[1753204343502,69.86751668,202.13,202.07,14.81885835]
[1753204343726,84.68637503,202.13,202.07,14.81885835]
[1753204343892,30.94751668,202.13,202.07,14.81885835]
[1753204344397,30.94751668,202.13,202.01,0.72]
[1753204344398,4.94751668,202.13,202.08,14.81885835]
[1753204344598,12.3645498,202.2,202.09,0.72]
[1753204344910,4.94562016,202.2,202.17,14.81885835]
[1753204345092,4.94486475,202.23,202.19,14.81885835]
[1753204345423,4.94486475,202.23,202.13,0.72]
[1753204345424,4.94459672,202.25,202.21,14.81885835]
[1753204345585,8.1414,202.33,202.21,14.81885835]
[1753204345586,0.67,202.32,202.24,14.81885835]
[1753204345786,2.57737858,202.34,202.29,14.81885835]
[1753204345997,0.2,202.36,202.29,14.81885835]
[1753204346200,19.76079064,202.35,202.29,103.41885835]
[1753204346393,4.94193229,202.35,202.3,14.81885835]
[1753204346623,0.2,202.36,202.29,88.6]
[1753204346785,5.14171837,202.36,202.31,14.81885835]
[1753204346991,5.14171837,202.36,202.32,14.81885835]
[1753204347328,0.67,202.35,202.29,88.6]
[1753204347491,5.14171837,202.36,202.29,88.6]
[1753204347492,5.14171837,202.36,202.32,14.81885835]
[1753204347695,5.14171837,202.36,202.3,14.81885835]
[1753204348204,5.14171837,202.36,202.33,14.81885835]
[1753204348434,0.2,202.36,202.34,14.81885835]
[1753204348800,5.14175122,202.36,202.3,0.72]
[1753204349104,26.0,202.33,202.17,38.9]
[1753204349303,14.81885835,202.29,202.23,14.81885835]
[1753204349504,39.57,202.32,202.2,30.72]
[1753204349705,39.57,202.32,202.2,30.0]
[1753204349706,0.67,202.31,202.2,30.0]
[1753204349906,26.0,202.29,202.21,14.81885835]
[1753204350116,26.0,202.29,202.23,14.81885835]
[1753204350310,0.67,202.31,202.26,14.81885835]
[1753204350510,0.67,202.31,202.2,30.0]
[1753204350511,18.38066625,202.35,202.29,14.81885835]
[1753204350717,83.06597142,202.36,202.22,0.72]
[1753204350718,3.56200548,202.34,202.28,14.81885835]
[1753204351018,14.81885835,202.34,202.22,0.72]
[1753204351229,14.81885835,202.34,202.28,14.81885835]
[1753204351421,3.56501309,202.33,202.29,14.81885835]
[1753204351611,14.81885835,202.34,202.28,14.81885835]
[1753204351821,4.23508168,202.33,202.26,14.81885835]
[1753204352123,4.23508168,202.33,202.21,14.81885835]
[1753204352124,14.81885835,202.27,202.21,14.81885835]
[1753204352328,14.81885835,202.3,202.24,14.81885835]
[1753204352631,0.67,202.32,202.17,38.88]
[1753204352632,0.06,202.29,202.25,14.81885835]
[1753204352804,0.06,202.29,202.24,14.81885835]
[1753204352998,0.06,202.29,202.22,0.72]
[1753204352999,0.06,202.29,202.25,0.72]
[1753204353198,0.06,202.29,202.23,14.81885835]
[1753204353412,0.06,202.29,202.24,14.81885835]
[1753204353630,14.87885835,202.29,202.17,68.48]
[1753204353814,0.73,202.29,202.19,0.72]
[1753204354012,0.73,202.29,202.2,14.81885835]
[1753204354213,14.81885835,202.27,202.21,14.81885835]
[1753204354543,0.73,202.29,202.19,14.81885835]
[1753204354729,0.73,202.29,202.1,0.72]
[1753204354730,14.81885835,202.2,202.1,0.72]
[1753204355034,14.81885835,202.18,202.11,14.81885835]
[1753204355207,70.96674084,202.22,202.15,14.81885835]
[1753204355407,14.81885835,202.2,202.14,14.81885835]
[1753204355646,56.81788249,202.22,202.1,14.81885835]
[1753204355809,14.81885835,202.15,202.08,15.53885835]
[1753204356011,14.81885835,202.16,202.08,0.72]
[1753204356230,14.81885835,202.16,202.1,14.81885835]
[1753204356425,14.81885835,202.16,202.04,4.94944196]
[1753204356426,56.14788249,202.22,202.14,14.81885835]
[1753204356629,14.81885835,202.21,202.14,14.81885835]
[1753204356835,43.30788249,202.22,202.11,0.72]
[1753204357044,26.0,202.19,202.1,14.81885835]
[1753204357364,14.81885835,202.17,202.1,14.81885835]
[1753204357522,26.0,202.19,202.11,14.81885835]
[1753204357721,26.0,202.19,202.12,14.81885835]
[1753204358535,14.81885835,202.19,202.13,14.81885835]
[1753204358833,39.43,202.21,202.12,14.81885835]
[1753204359040,14.81885835,202.17,202.09,0.72]
[1753204359335,14.81885835,202.17,202.02,171.85885835]
[1753204359336,14.81885835,202.12,202.05,0.72]
[1753204359649,38.76,202.14,201.99,88.6]
[1753204359848,38.76,202.14,201.98,74.38]
[1753204359849,4.25022538,202.13,202.01,0.72]
[1753204360146,14.81885835,202.08,202.02,14.81885835]
[1753204360449,14.81885835,202.06,201.99,14.81885835]
[1753204360613,53.55885835,202.08,201.97,5.67120091]
[1753204360942,4.94926998,202.05,201.99,14.81885835]
[1753204361170,4.94926998,202.05,201.98,14.81885835]
[1753204361171,19.76812833,202.05,201.98,14.81885835]
[1753204361344,14.81885835,202.04,201.98,14.81885835]
[1753204361546,19.76812833,202.05,201.95,0.72]
[1753204361746,19.76812833,202.05,201.98,14.81885835]
[1753204361952,4.94926998,202.05,201.98,14.81885835]
[1753204362142,19.76812833,202.05,201.99,14.81885835]
[1753204362342,19.76812833,202.05,201.98,14.81885835]
[1753204362574,19.76714871,202.09,201.99,0.72]
[1753204362783,14.81885835,202.07,202.01,14.81885835]
[1753204363072,19.76714871,202.09,202.03,14.81885835]
[1753204363240,14.81885835,202.06,202.0,14.81885835]
[1753204363447,14.81885835,202.08,202.01,14.81885835]
[1753204363640,14.81885835,202.06,201.87,6.4557]
[1753204363966,14.81885835,202.06,202.0,14.81885835]
[1753204364169,0.67,202.07,202.0,14.81885835]
[1753204364170,14.81885835,202.07,202.0,14.81885835]
[1753204364371,14.81885835,202.07,201.98,0.72]
[1753204364563,14.81885835,202.07,202.01,14.81885835]
[1753204364944,0.67,202.06,201.94,0.72]
[1753204365266,0.67,202.06,202.0,14.81885835]
[1753204365267,4.94926998,202.05,202.0,14.81885835]
[1753204365765,19.76786684,202.07,202.0,0.72]
[1753204365979,14.81885835,202.06,201.97,0.72]
[1753204366152,14.81885835,202.05,201.99,14.81885835]
[1753204366346,14.81885835,202.06,201.99,14.81885835]
[1753204366547,14.81885835,202.05,201.98,14.81885835]
[1753204366780,17.3209588,202.07,201.93,15.53885835]
[1753204366781,14.81885835,201.99,201.93,15.53885835]
[1753204366966,38.62,202.01,201.93,0.72]
[1753204367277,14.81885835,201.97,201.9,15.53885835]
[1753204368048,14.81885835,201.96,201.9,0.72]
[1753204368250,14.81885835,201.96,201.85,29.6]
[1753204368251,0.71,201.97,201.85,29.6]
[1753204368481,4.95109495,201.98,201.92,14.81885835]
[1753204368779,14.81885835,202.0,201.94,14.81885835]
[1753204369081,3.57943723,201.99,201.93,14.81885835]
[1753204369265,14.81885835,201.97,201.9,14.81885835]
[1753204369472,14.81885835,201.91,201.82,30.0]
[1753204369657,14.81885835,201.88,201.82,30.0]
[1753204369853,14.81885835,201.88,201.81,15.51885835]
[1753204370460,14.81885835,201.88,201.81,5.65514608]
[1753204370662,14.81885835,201.88,201.81,0.7]
[1753204370840,14.81885835,201.89,201.8,0.7]
[1753204371044,14.81885835,201.91,201.84,14.81885835]
[1753204371369,19.77157703,201.91,201.84,14.81885835]
[1753204371568,19.77132476,201.92,201.86,14.81885835]
[1753204371770,14.81885835,201.91,201.84,14.81885835]
[1753204372062,14.81885835,201.91,201.76,0.14216157]
[1753204372063,14.81885835,201.85,201.75,15.51885835]
[1753204372267,38.58,201.84,201.76,14.81885835]
[1753204372447,14.81885835,201.77,201.73,0.03]
[1753204372644,14.81885835,201.74,201.73,0.03]
[1753204373046,0.71,201.74,201.73,0.03]
[1753204373244,20.48573353,201.74,201.73,0.03]
[1753204373488,4.95668941,201.75,201.73,0.03]
[1753204373659,38.62,201.79,201.73,0.03]
[1753204373979,38.62,201.79,201.75,14.81885835]
[1753204374163,38.62,201.79,201.74,14.81885835]
[1753204374664,39.33,201.79,201.74,14.81885835]
[1753204374867,0.71,201.78,201.73,0.03]
[1753204375063,0.71,201.78,201.74,14.81885835]
[1753204375376,3.5752454,201.82,201.76,14.81885835]
[1753204375551,14.81885835,201.86,201.8,14.81885835]
[1753204375885,4.28397574,201.88,201.8,14.81885835]
[1753204375886,5.66360234,201.88,201.8,14.81885835]
[1753204376048,5.66360234,201.88,201.77,0.7]
[1753204376049,53.43885835,201.87,201.77,0.7]
[1753204376378,38.62,201.87,201.73,4.98702605]
[1753204376681,14.81885835,201.8,201.74,0.7]
[1753204376886,14.81885835,201.79,201.73,0.03]
[1753204377189,14.81885835,201.77,201.73,0.03]
[1753204377661,14.81885835,201.78,201.73,0.03]
[1753204377857,14.81885835,201.78,201.73,0.73]
[1753204378166,38.62,201.8,201.73,0.03]
[1753204378382,14.81885835,201.74,201.73,0.03]
[1753204378679,14.81885835,201.77,201.73,0.03]
[1753204379081,14.81885835,201.76,201.73,0.03]
[1753204379261,4.9556047,201.8,201.73,0.73]
[1753204379466,14.81885835,201.78,201.73,0.73]
[1753204380079,4.9556047,201.8,201.73,0.73]
[1753204380272,14.81885835,201.79,201.73,0.73]
[1753204380500,14.81885835,201.74,201.73,0.03]
[1753204380797,26.0,201.71,201.61,88.6]
[1753204380953,14.81885835,201.64,201.58,103.41885835]
[1753204381153,26.0,201.71,201.58,88.6]
[1753204381154,4.95957942,201.63,201.58,88.6]
[1753204381354,4.95884161,201.66,201.58,89.3]
[1753204381556,0.71,201.72,201.59,0.7]
[1753204381765,1.6367,201.78,201.59,0.7]
[1753204381766,53.45885835,201.73,201.59,106.08468397]
[1753204381979,38.64,201.73,201.67,14.81885835]
[1753204382183,38.64,201.73,201.63,0.7]
[1753204382368,14.81885835,201.69,201.6,88.6]
[1753204382593,0.71,201.68,201.51,88.6]
[1753204382783,14.81885835,201.58,201.51,88.6]
[1753204382986,26.0,201.53,201.48,88.6]
[1753204383185,5.67228662,201.52,201.42,88.6]
[1753204383367,20.49114497,201.52,201.42,89.3]
[1753204383561,20.49114497,201.52,201.46,14.81885835]
[1753204383562,32.18686152,201.52,201.46,14.81885835]
[1753204383800,4.96228662,201.52,201.4,26.0]
[1753204384088,4.96130184,201.56,201.47,0.7]
[1753204384586,4.96130184,201.56,201.37,17.38094055]
[1753204384798,14.81885835,201.53,201.38,38.68]
[1753204385102,39.39,201.52,201.42,14.81885835]
[1753204385393,14.81885835,201.45,201.34,5.66671015]
[1753204385580,0.71,201.46,201.38,14.81885835]
[1753204385896,14.81885835,201.4,201.33,14.81885835]
[1753204386065,14.81885835,201.4,201.28,0.7]
[1753204386393,0.71,201.39,201.29,14.81885835]
[1753204386696,0.71,201.39,201.23,38.72]
[1753204386697,0.14216157,201.45,201.3,0.7]
[1753204386862,0.14216157,201.43,201.31,38.76]
[1753204387063,4.96253287,201.51,201.42,14.81885835]
[1753204387255,5.10436921,201.53,201.45,14.81885835]
[1753204387458,14.81885835,201.5,201.43,0.7]
[1753204387661,14.81885835,201.48,201.43,0.7]
[1753204387904,0.71,201.52,201.39,0.7]
[1753204388063,17.36730861,201.53,201.41,14.81885835]
[1753204388064,26.71,201.5,201.41,14.81885835]
[1753204388266,14.81885835,201.48,201.39,0.7]
[1753204388562,4.96164353,201.55,201.46,14.81885835]
[1753204388759,4.96164353,201.55,201.46,0.7]
[1753204389096,17.36283361,201.58,201.46,0.7]
[1753204389583,26.0,201.56,201.49,14.81885835]
[1753204389776,40.81885835,201.56,201.46,0.7]
[1753204390164,14.81885835,201.53,201.46,14.81885835]
[1753204390488,14.81885835,201.47,201.38,0.03]
[1753204390795,14.81885835,201.44,201.38,0.03]
[1753204390963,14.81885835,201.45,201.38,14.84885835]
[1753204391172,0.71,201.46,201.38,0.03]
[1753204391375,39.42,201.52,201.45,14.81885835]
[1753204391688,4.96119658,201.57,201.51,14.81885835]
[1753204391875,0.71,201.62,201.5,0.7]
[1753204392075,0.71,201.66,201.6,14.81885835]
[1753204392281,12.39326885,201.73,201.62,14.81885835]
[1753204392478,6.0809,201.75,201.66,14.81885835]
[1753204392479,4.95687518,201.74,201.66,14.81885835]
[1753204392678,4.95687518,201.74,201.69,14.81885835]
[1753204392894,4.95613817,201.77,201.65,0.7]
[1753204393108,4.95613817,201.77,201.69,14.81885835]
[1753204393291,45.08596475,201.78,201.72,14.81885835]
[1753204393498,45.08596475,201.78,201.66,16.78468397]
[1753204393499,0.71,201.82,201.76,14.81885835]
[1753204393688,0.06,201.83,201.71,0.7]
[1753204393894,0.06,201.83,201.77,14.81885835]
[1753204394206,14.81885835,201.78,201.7,14.81885835]
[1753204394397,14.81885835,201.78,201.72,14.81885835]
[1753204394599,0.71,201.82,201.72,14.81885835]
[1753204394600,14.81885835,201.79,201.72,14.81885835]
[1753204395115,14.81885835,201.75,201.69,14.81885835]
[1753204395292,14.81885835,201.75,201.69,19.81318628]
[1753204395293,24.76984203,201.75,201.69,19.81318628]
[1753204395483,4.95665575,201.75,201.69,19.81318628]
[1753204395791,4.95665575,201.75,201.66,19.81318628]
[1753204395792,19.81318628,201.73,201.66,19.81318628]
[1753204396011,0.71,201.72,201.62,19.81318628]
[1753204396310,19.81318628,201.71,201.64,19.81318628]
[1753204396500,0.71,201.72,201.64,19.81318628]
[1753204396694,4.95665575,201.75,201.67,19.81318628]
[1753204397012,39.5,201.78,201.72,19.81318628]
[1753204397189,39.5,201.78,201.73,19.81318628]
[1753204397385,19.81318628,201.76,201.69,19.81318628]
[1753204397595,19.81318628,201.71,201.63,0.72]
[1753204397918,19.81318628,201.68,201.62,19.81318628]
[1753204398117,26.67,201.75,201.62,19.81318628]
[1753204398280,0.67,201.75,201.66,19.81318628]
[1753204398628,5.01597111,201.78,201.69,16.78468397]
[1753204398813,5.01597111,201.78,201.73,19.81318628]
[1753204399027,5.01590098,201.78,201.69,0.72]
[1753204399202,0.67,201.77,201.68,19.81318628]
[1753204399391,24.82908726,201.78,201.71,19.81318628]
[1753204399592,19.81318628,201.76,201.69,19.81318628]
[1753204399813,19.81318628,201.76,201.7,19.81318628]
[1753204400120,5.01590098,201.78,201.68,0.72]
[1753204400121,0.06,201.78,201.73,19.81318628]
[1753204400319,0.06,201.78,201.76,19.81318628]
[1753204400524,0.06,201.78,201.77,36.59787025]
[1753204401119,0.06,201.78,201.77,37.31787025]
[1753204401416,0.06,201.78,201.77,42.27400842]
[1753204401818,0.06,201.83,201.81,16.78468397]
[1753204402000,4.95222679,201.93,201.82,36.59787025]
[1753204402200,24.76541307,201.93,201.87,19.81318628]
[1753204402429,19.81318628,201.88,201.82,19.81318628]
[1753204402607,19.81318628,201.87,201.81,19.81318628]
[1753204402804,20.48318628,201.89,201.79,0.72]
[1753204403010,0.67,201.89,201.83,19.81318628]
[1753204403218,0.67,201.89,201.79,0.72]
[1753204403527,4.22502601,201.89,201.75,0.72]
[1753204403821,39.91,201.88,201.81,19.81318628]
[1753204404026,3.55536725,201.87,201.82,19.81318628]
[1753204404320,3.55536725,201.86,201.82,19.81318628]
[1753204404522,3.55536725,201.85,201.77,16.78468397]
[1753204404721,3.55983466,201.9,201.84,19.81318628]
[1753204404961,4.9519687,201.94,201.89,19.81318628]
[1753204405129,3.56082063,201.93,201.91,19.81318628]
[1753204405291,4.95147127,201.97,201.92,19.81318628]
[1753204405488,3.56439188,201.96,201.93,19.81318628]
[1753204405692,4.9509864,201.98,201.94,19.81318628]
[1753204406247,4.9509864,201.98,201.94,20.53318628]
[1753204406540,0.2,201.99,201.96,19.81318628]
[1753204406706,0.2,201.99,201.97,19.81318628]
[1753204406911,0.2,201.99,201.96,19.81318628]
[1753204407107,5.1507802,201.99,201.94,0.72]
[1753204407311,5.1507802,201.99,201.91,19.81318628]
[1753204407312,5.8207802,201.99,201.91,19.81318628]
[1753204407525,0.2,201.99,201.96,19.81318628]
[1753204407742,0.2,201.99,201.97,19.81318628]
[1753204407956,0.2,201.99,201.98,19.81318628]
[1753204408116,0.2,201.99,201.98,20.53318628]
[1753204408320,0.2,201.99,201.98,37.31787025]
[1753204409137,0.2,201.99,201.98,17.50468397]
[1753204409337,0.2,201.99,201.98,20.53318628]
[1753204409644,0.2,201.99,201.98,36.59787025]
[1753204409826,0.2,201.99,201.98,19.81318628]
[1753204410030,0.2,201.99,201.98,37.46003182]
[1753204410329,4.94657696,202.16,202.1,19.81318628]
[1753204410522,19.81318628,202.15,202.08,19.81318628]
[1753204410721,17.31301938,202.16,202.09,19.81318628]
[1753204410924,4.94657696,202.16,202.1,19.81318628]
[1753204411119,4.94657696,202.16,202.04,0.72]
[1753204411120,19.81318628,202.15,202.04,0.72]
[1753204411315,4.94731113,202.13,202.08,19.81318628]
[1753204411644,4.94731113,202.13,202.09,19.81318628]
[1753204411809,20.48318628,202.12,202.04,0.72]
[1753204412008,20.48318628,202.12,202.02,16.78468397]
[1753204412009,19.81318628,202.09,202.02,19.81318628]
[1753204412239,19.81318628,202.07,201.97,16.78468397]
[1753204412435,19.81318628,202.07,202.0,19.81318628]
[1753204412624,19.81318628,202.07,202.01,19.81318628]
[1753204412827,39.08,202.08,201.95,16.78468397]
[1753204412828,19.81318628,202.02,201.95,19.81318628]
[1753204413026,19.81318628,202.01,201.95,19.81318628]
[1753204413441,19.81318628,202.01,201.91,0.72]
[1753204413442,4.95049504,202.0,201.91,0.72]
[1753204413656,37.13991894,202.0,201.91,0.72]
[1753204413947,19.81318628,201.94,201.88,19.81318628]
[1753204414150,39.06,201.99,201.87,0.72]
[1753204414151,0.67,201.96,201.87,19.81318628]
[1753204414330,19.81318628,201.95,201.88,19.81318628]
[1753204414530,26.0,201.98,201.89,19.81318628]
[1753204414725,39.06,201.99,201.85,0.72]
[1753204414726,0.67,201.97,201.9,19.81318628]
[1753204414927,4.95025338,202.01,201.96,19.81318628]
[1753204415440,4.95000495,202.02,201.97,19.81318628]
[1753204416341,27.6673,202.08,201.92,16.78468397]
[1753204416342,0.73,202.08,202.01,19.81318628]
[1753204416526,0.06,202.08,202.02,19.81318628]
[1753204416848,4.94878012,202.07,202.03,19.81318628]
[1753204417046,4.94878012,202.07,202.02,19.81318628]
[1753204417222,4.94878012,202.07,201.98,0.72]
[1753204417223,4.94878012,202.07,202.01,14.89959287]
[1753204417419,4.94878012,202.07,201.99,16.78468397]
[1753204417634,0.06,202.08,202.04,14.89959287]
[1753204417835,0.06,202.08,202.0,0.72]
[1753204417836,0.06,202.08,202.07,14.89959287]
[1753204418155,8.50857385,202.18,202.08,16.78468397]
[1753204418320,4.94610028,202.18,202.13,14.89959287]
[1753204418524,19.84569315,202.18,202.11,14.89959287]
[1753204419046,19.84569315,202.18,202.12,14.89959287]
[1753204419225,14.89959287,202.15,202.07,0.72]
[1753204419545,4.94706638,202.14,202.08,14.89959287]
[1753204419742,4.94706638,202.14,202.09,14.89959287]
[1753204419947,4.94633229,202.17,202.1,15.61959287]
[1753204420145,19.84566228,202.19,202.13,14.89959287]
[1753204420451,4.94606941,202.19,202.13,14.89959287]
[1753204420654,0.2,202.2,202.16,14.89959287]
[1753204420952,0.2,202.2,202.19,14.89959287]
[1753204421164,0.2,202.2,202.17,0.72]
[1753204421165,0.2,202.2,202.18,14.89959287]
[1753204421724,0.2,202.2,202.17,0.72]
[1753204421941,0.2,202.2,202.18,14.89959287]
[1753204422142,0.2,202.2,202.19,14.89959287]
[1753204422321,0.2,202.2,202.13,16.78468397]
[1753204422521,0.2,202.2,202.17,14.89959287]
[1753204422725,5.145612,202.2,202.14,14.89959287]
[1753204422946,0.2,202.2,202.19,14.89959287]
[1753204423137,0.2,202.2,202.18,14.89959287]
[1753204423544,0.2,202.2,202.19,14.89959287]
[1753204423932,0.2,202.2,202.19,32.40427684]
[1753204424449,5.00341437,202.29,202.2,16.78468397]
[1753204424650,5.00341437,202.29,202.24,14.89959287]
[1753204425157,5.00341437,202.29,202.25,14.89959287]
[1753204425333,0.67,202.28,202.12,6.16506157]
[1753204425534,19.84376735,202.26,202.17,16.78468397]
[1753204425738,4.94417448,202.26,202.21,14.89959287]
[1753204425934,4.94417448,202.26,202.17,16.78468397]
[1753204426143,4.94386106,202.28,202.25,14.89959287]
[1753204426336,0.06,202.29,202.27,14.89959287]
[1753204426538,0.06,202.29,202.28,14.89959287]
[1753204427129,0.06,202.29,202.28,31.68427684]
[1753204427348,0.06,202.29,202.28,32.36427684]
[1753204427756,0.2,202.36,202.3,29.6]
[1753204427941,0.06,202.38,202.36,16.78468397]
[1753204428130,0.86,202.5,202.38,16.78468397]
[1753204428343,0.86,202.5,202.4,46.38468397]
[1753204428344,5.1382741,202.5,202.4,46.38468397]
[1753204428547,0.2,202.5,202.44,46.38468397]
[1753204428733,0.2,202.5,202.47,14.89959287]
[1753204428935,14.89959287,202.49,202.43,14.89959287]
[1753204429159,5.13834273,202.5,202.37,0.68]
[1753204429451,5.13834273,202.5,202.48,14.89959287]
[1753204429452,0.2,202.5,202.48,14.89959287]
[1753204429756,5.1382791,202.5,202.42,0.68]
[1753204429973,0.2,202.5,202.48,14.89959287]
[1753204430332,0.2,202.5,202.49,14.89959287]
[1753204430758,0.2,202.5,202.43,46.38468397]
[1753204430935,0.2,202.5,202.49,14.89959287]
[1753204431139,5.1382716,202.5,202.47,14.89959287]
[1753204431343,5.1382716,202.5,202.46,14.89959287]
[1753204431533,5.1382716,202.5,202.47,14.89959287]
[1753204432030,5.1382716,202.5,202.41,0.68]
[1753204432232,18.14395061,202.5,202.37,0.68]
[1753204432434,26.0,202.47,202.32,0.68]
[1753204432639,14.89959287,202.39,202.33,14.89959287]
[1753204432848,14.89959287,202.36,202.25,0.68]
[1753204433052,14.89959287,202.36,202.29,14.89959287]
[1753204433246,0.66,202.38,202.28,14.89959287]
[1753204433247,14.89959287,202.35,202.28,14.89959287]
[1753204433452,14.89959287,202.34,202.27,14.89959287]
[1753204433765,14.89959287,202.3,202.23,14.89959287]
[1753204433933,14.89959287,202.3,202.19,0.03]
[1753204433934,14.89959287,202.26,202.2,14.89959287]
[1753204434138,14.89959287,202.26,202.19,14.92959287]
[1753204434354,14.89959287,202.26,202.19,0.03]
[1753204434563,14.89959287,202.26,202.19,14.92959287]
[1753204434734,14.89959287,202.26,202.2,14.89959287]
[1753204434937,14.89959287,202.26,202.19,0.03]
[1753204435242,0.66,202.27,202.2,19.71284725]
[1753204435442,19.71284725,202.26,202.19,19.74284725]
[1753204435648,4.94413131,202.26,202.2,19.71284725]
[1753204435854,24.65697856,202.26,202.2,19.71284725]
[1753204436372,4.94413131,202.26,202.2,19.71284725]
[1753204436675,4.94290939,202.31,202.25,19.71284725]
[1753204436976,4.94290939,202.31,202.27,19.71284725]
[1753204437270,4.94290939,202.31,202.21,0.68]
[1753204437474,4.94290939,202.31,202.22,19.71284725]
[1753204437475,0.66,202.3,202.22,19.71284725]
[1753204437669,19.71284725,202.29,202.23,19.71284725]
[1753204437965,4.94364247,202.28,202.23,19.71284725]
[1753204438164,4.94364247,202.28,202.19,30.03]
[1753204438165,4.94364247,202.28,202.25,19.71284725]
[1753204438669,4.94242079,202.33,202.27,19.71284725]
[1753204438867,4.94242079,202.33,202.25,19.71284725]
[1753204438868,19.71284725,202.32,202.25,19.71284725]
[1753204439171,19.71284725,202.31,202.25,19.71284725]
[1753204439383,19.71284725,202.29,202.21,16.78468397]
[1753204439546,4.94242079,202.33,202.21,16.78468397]
[1753204439547,19.71284725,202.27,202.21,19.71284725]
[1753204439746,4.94437577,202.25,202.19,0.03]
[1753204439945,19.71284725,202.24,202.19,0.03]
[1753204440163,19.71284725,202.23,202.19,0.03]
[1753204440448,0.66,202.23,202.19,0.03]
[1753204440660,4.94437577,202.25,202.22,19.71284725]
[1753204441144,4.94437577,202.25,202.2,0.03]
[1753204441145,19.71284725,202.23,202.2,0.03]
[1753204441450,0.66,202.24,202.2,0.03]
[1753204441671,4.94437577,202.25,202.2,0.03]
[1753204441867,19.71284725,202.29,202.23,19.71284725]
[1753204442175,24.65600098,202.3,202.24,19.71284725]
[1753204442377,4.94315373,202.3,202.24,88.6]
[1753204442546,19.71284725,202.29,202.24,88.6]
[1753204442869,19.71284725,202.25,202.24,88.6]
[1753204443071,19.71284725,202.26,202.2,88.63]
[1753204443275,17.30103806,202.3,202.2,88.63]
[1753204443452,17.30103806,202.3,202.2,108.34284725]
[1753204443656,19.71284725,202.28,202.21,19.71284725]
[1753204444092,19.71284725,202.28,202.2,88.63]
[1753204444093,37.0155959,202.28,202.2,88.63]
[1753204444277,19.71284725,202.21,202.2,88.63]
[1753204444583,19.71284725,202.24,202.2,0.03]
[1753204444896,19.71284725,202.21,202.2,0.03]
[1753204445066,0.66,202.23,202.2,0.03]
[1753204445252,20.37284725,202.23,202.2,0.03]
[1753204445456,0.66,202.23,202.16,9.67774442]
[1753204445683,20.37284725,202.23,202.16,9.67774442]
[1753204445866,19.71284725,202.22,202.16,9.67774442]
[1753204446377,19.71284725,202.27,202.2,19.71284725]
[1753204446579,19.71284725,202.27,202.17,16.78468397]
[1753204446580,4.94388688,202.27,202.17,16.78468397]
[1753204446756,24.65673413,202.27,202.21,19.71284725]
[1753204446958,4.94388688,202.27,202.21,19.71284725]
[1753204447182,24.65673413,202.27,202.21,19.71284725]
[1753204447513,0.66,202.26,202.16,19.71284725]
[1753204447659,19.71284725,202.23,202.17,19.71284725]
[1753204447866,26.0,202.24,202.17,19.71284725]
[1753204448059,4.94510928,202.22,202.17,19.71284725]